bitfinex-derivatives/quotes_SOLF0:USTF0_20220109
["timestamp","ask_amount","ask_price","bid_price","bid_amount"]
[1641724717766,2.28395032,139.13,139.12,11.57858773]
[1641724717966,2.28395032,139.13,139.12,8.52158773]
[1641724718266,2.28395032,139.13,139.12,11.57858773]
[1641724719973,27.66479,139.2,139.12,15.57858773]
[1641724720172,27.66479,139.2,139.12,19.70446375]
[1641724720381,27.66479,139.2,139.16,3.057]
[1641724720773,27.66479,139.2,139.13,3.23720574]
[1641724720975,27.66479,139.2,139.11,33.41535659]
[1641724721172,27.66479,139.2,139.14,3.057]
[1641724721774,27.66479,139.2,139.11,5.75056659]
[1641724722272,27.66479,139.2,139.16,3.057]
[1641724722473,4.00750468,139.19,139.12,2.55269268]
[1641724722874,27.66479,139.2,139.16,3.057]
[1641724723073,27.66479,139.2,139.16,9.431]
[1641724723876,27.66479,139.2,139.16,6.374]
[1641724724078,27.66479,139.2,139.13,4.0]
[1641724724677,27.66479,139.2,139.18,3.057]
[1641724725177,27.66479,139.2,139.12,17.09727017]
[1641724725578,27.66479,139.2,139.17,3.057]
[1641724726379,27.66479,139.2,139.19,3.057]
[1641724726583,66.1809,139.24,139.19,3.057]
[1641724726780,66.1809,139.24,139.21,3.057]
[1641724726980,27.66479,139.25,139.21,11.844]
[1641724727181,27.66479,139.25,139.21,8.787]
[1641724727784,27.66479,139.25,139.22,3.057]
[1641724728382,27.66479,139.25,139.21,3.057]
[1641724728584,27.66479,139.25,139.17,18.22420368]
[1641724728883,4.08089066,139.24,139.17,14.22420368]
[1641724729282,4.08089066,139.24,139.18,3.23631815]
[1641724729482,4.08089066,139.24,139.21,3.057]
[1641724730783,4.08089066,139.24,139.21,12.509]
[1641724730983,4.08089066,139.24,139.23,3.057]
[1641724731283,70.1127,139.3,139.23,6.29204018]
[1641724731485,70.1127,139.3,139.23,10.29204018]
[1641724731684,70.1127,139.3,139.23,5.74583559]
[1641724732182,70.1127,139.3,139.27,3.057]
[1641724732384,0.943,139.33,139.27,12.157]
[1641724732582,4.07947027,139.29,139.27,12.157]
[1641724732984,27.66479,139.28,139.27,12.157]
[1641724733384,31.74411982,139.28,139.27,12.157]
[1641724736292,4.07932982,139.28,139.27,12.157]
[1641724736791,4.07887193,139.31,139.27,12.157]
[1641724736991,4.07887193,139.31,139.27,9.1]
[1641724737192,4.07887082,139.28,139.27,9.1]
[1641724737391,4.07887082,139.28,139.26,9.74458404]
[1641724737793,3.6995569,139.3,139.27,7.057]
[1641724737992,3.6995569,139.3,139.28,4.0]
[1641724738292,3.6995569,139.3,139.29,3.057]
[1641724739796,3.6995569,139.3,139.28,4.0]
[1641724739797,3.6995569,139.3,139.26,5.74458404]
[1641724739993,3.6995569,139.3,139.26,3.057]
[1641724740694,3.6995569,139.3,139.25,7.1764326]
[1641724741093,27.66479,139.29,139.28,3.057]
[1641724741894,3.6995569,139.3,139.28,3.057]
[1641724742095,3.6995569,139.3,139.29,3.057]
[1641724745297,3.6995569,139.3,139.29,11.394]
[1641724745899,70.6407,139.39,139.29,17.13724875]
[1641724746096,0.943,139.39,139.29,22.15847388]
[1641724746296,8.1194326,139.41,139.36,3.057]
[1641724746699,0.943,139.41,139.3,4.07798607]
[1641724746898,0.943,139.41,139.36,3.057]
[1641724747097,27.66479,139.37,139.32,3.057]
[1641724747296,27.66479,139.37,139.31,8.79934474]
[1641724747498,27.66479,139.37,139.36,3.057]
[1641724747697,66.3759,139.42,139.36,10.364]
[1641724747896,66.3759,139.42,139.36,7.307]
[1641724748097,65.4329,139.42,139.38,3.057]
[1641724748397,0.943,139.45,139.41,3.057]
[1641724748798,0.943,139.44,139.34,5.7411871]
[1641724748998,0.943,139.41,139.33,3.057]
[1641724749199,27.66479,139.35,139.33,3.057]
[1641724749799,66.4216,139.44,139.33,4.0]
[1641724750000,66.4216,139.44,139.35,4.0]
[1641724750200,66.4216,139.44,139.39,3.057]
[1641724750400,66.4216,139.44,139.34,4.07622704]
[1641724750599,66.4216,139.44,139.33,16.9139267]
[1641724750899,0.943,139.43,139.36,3.057]
[1641724751100,27.66479,139.37,139.34,4.07637085]
[1641724751300,34.96179,139.37,139.36,3.057]
[1641724751900,7.297,139.37,139.36,3.057]
[1641724752299,65.4786,139.44,139.36,3.057]
[1641724752505,65.4786,139.44,139.33,11.17257208]
[1641724752700,65.4786,139.44,139.38,3.057]
[1641724752902,65.4786,139.44,139.4,3.057]
[1641724753105,27.66479,139.42,139.4,3.057]
[1641724753305,27.66479,139.42,139.41,3.057]
[1641724753806,27.66479,139.42,139.35,9.74086258]
[1641724754205,27.66479,139.42,139.4,3.057]
[1641724754405,27.66479,139.42,139.41,3.057]
[1641724755306,27.66479,139.42,139.36,5.74042337]
[1641724755505,27.66479,139.42,139.39,3.057]
[1641724755705,27.66479,139.42,139.35,5.74079724]
[1641724756106,27.66479,139.42,139.38,3.057]
[1641724756307,27.66479,139.42,139.36,4.07618795]
[1641724756509,27.66479,139.42,139.35,5.74079724]
[1641724756708,27.66479,139.42,139.39,3.057]
[1641724757308,27.66479,139.42,139.35,5.74079724]
[1641724757507,27.66479,139.42,139.38,3.057]
[1641724758709,27.66479,139.42,139.35,9.74079724]
[1641724758908,27.66479,139.42,139.39,3.057]
[1641724760608,27.66479,139.42,139.37,4.0]
[1641724760810,27.66479,139.42,139.41,3.057]
[1641724761414,131.8749,139.48,139.41,7.057]
[1641724761610,66.7983,139.48,139.42,4.0]
[1641724761809,66.7983,139.48,139.42,11.828]
[1641724762010,66.7983,139.48,139.46,3.057]
[1641724762210,0.943,139.48,139.46,3.057]
[1641724763114,0.943,139.48,139.42,7.828]
[1641724763313,27.66479,139.47,139.45,3.057]
[1641724763513,27.66479,139.47,139.42,7.828]
[1641724763714,27.66479,139.47,139.43,3.057]
[1641724764214,0.943,139.46,139.42,3.057]
[1641724764414,27.66479,139.47,139.42,3.057]
[1641724764617,27.66479,139.47,139.4,6.892]
[1641724765016,28.60779,139.47,139.42,3.057]
[1641724765215,27.66479,139.43,139.42,3.057]
[1641724765615,27.66479,139.43,139.37,14.05842883]
[1641724765815,27.66479,139.43,139.37,18.05842883]
[1641724766018,27.66479,139.43,139.42,3.057]
[1641724768022,27.66479,139.47,139.42,3.057]
[1641724768421,27.66479,139.47,139.38,9.73958014]
[1641724768622,27.66479,139.47,139.44,3.057]
[1641724768821,27.66479,139.47,139.42,7.756]
[1641724769022,2.58800244,139.46,139.42,7.756]
[1641724770321,2.58800244,139.46,139.45,7.057]
[1641724770525,2.58800244,139.46,139.45,9.539]
[1641724770823,2.58800244,139.46,139.45,13.61262674]
[1641724771022,73.90966506,139.54,139.45,13.61262674]
[1641724771221,27.66479,139.5,139.47,3.057]
[1641724771923,27.66479,139.5,139.45,3.057]
[1641724772324,0.943,139.49,139.4,14.05547268]
[1641724772524,0.943,139.48,139.4,14.05547268]
[1641724772723,0.943,139.47,139.41,3.057]
[1641724772924,6.818,139.48,139.4,7.16897269]
[1641724773126,70.865,139.49,139.4,7.16897269]
[1641724773324,27.66479,139.45,139.4,7.16897269]
[1641724773525,27.66479,139.45,139.43,3.057]
[1641724773927,27.66479,139.45,139.44,3.057]
[1641724774528,27.66479,139.45,139.42,5.73785907]
[1641724774728,35.77279,139.45,139.37,15.43544185]
[1641724774927,35.77279,139.45,139.4,3.057]
[1641724775130,35.77279,139.45,139.42,3.057]
[1641724775330,35.77279,139.45,139.43,3.057]
[1641724775530,35.77279,139.45,139.41,3.057]
[1641724776632,35.77279,139.45,139.37,19.43544185]
[1641724776830,35.77279,139.45,139.43,3.057]
[1641724777231,35.77279,139.45,139.38,4.07519731]
[1641724777431,101.70809,139.45,139.43,3.057]
[1641724777731,35.77279,139.45,139.37,15.43544185]
[1641724778334,35.77279,139.45,139.41,3.057]
[1641724779233,27.66479,139.42,139.41,3.057]
[1641724780137,36.61979,139.42,139.41,3.057]
[1641724780840,8.955,139.42,139.41,3.057]
[1641724781539,27.66479,139.45,139.41,3.057]
[1641724781940,27.66479,139.45,139.38,31.66479]
[1641724782240,27.66479,139.45,139.39,4.07510004]
[1641724782842,27.66479,139.45,139.44,3.057]
[1641724786045,97.15669,139.48,139.44,3.057]
[1641724786243,97.15669,139.48,139.42,13.31770281]
[1641724786446,97.15669,139.48,139.45,3.057]
[1641724786645,27.66479,139.48,139.45,3.057]
[1641724786845,2.58868667,139.47,139.45,3.057]
[1641724787045,2.58868667,139.47,139.46,3.057]
[1641724787247,2.58868667,139.47,139.46,9.654]
[1641724787448,21.32958,139.54,139.46,9.654]
[1641724787646,21.32958,139.54,139.47,5.7357224]
[1641724788047,21.32958,139.54,139.5,3.057]
[1641724788248,21.32958,139.54,139.48,3.057]
[1641724788449,21.32958,139.54,139.47,5.73588017]
[1641724788652,1.81099024,139.53,139.47,5.73588017]
[1641724788848,1.81099024,139.53,139.49,3.057]
[1641724789049,1.81099024,139.53,139.47,5.73588017]
[1641724789449,1.81099024,139.53,139.5,3.057]
[1641724790650,1.81099024,139.53,139.51,3.057]
[1641724790848,1.81099024,139.53,139.47,12.90100036]
[1641724791050,1.81099024,139.53,139.51,3.057]
[1641724791450,1.81099024,139.53,139.48,4.07233664]
[1641724791649,1.81099024,139.53,139.47,44.56579036]
[1641724792051,1.81099024,139.53,139.52,3.057]
[1641724797555,1.81099024,139.53,139.5,5.7344655]
[1641724797755,1.81099024,139.53,139.52,3.057]
[1641724798455,1.81099024,139.53,139.51,3.057]
[1641724800462,1.81099024,139.53,139.48,9.73518413]
[1641724800762,1.81099024,139.53,139.52,3.057]
[1641724804364,9.024e-05,139.53,139.52,7.057]
[1641724804866,9.024e-05,139.53,139.52,3.057]
[1641724805068,9.024e-05,139.53,139.52,27.057]
[1641724805969,21.32958,139.54,139.53,5.73331759]
[1641724806170,21.32958,139.54,139.53,4.0]
[1641724806870,21.32958,139.54,139.53,7.057]
[1641724807071,71.5983,139.6,139.53,7.057]
[1641724807370,71.5983,139.6,139.54,4.0]
[1641724807571,1.80942659,139.59,139.54,13.212]
[1641724808370,1.80942659,139.59,139.58,3.057]
[1641724810477,1.80942659,139.59,139.58,12.029]
[1641724811277,1.44721263,139.61,139.58,12.029]
[1641724811480,1.44723305,139.59,139.58,8.972]
[1641724811681,1.44723305,139.59,139.58,12.029]
[1641724812080,1.44723305,139.59,139.58,17.760168]
[1641724812280,1.2670328,139.6,139.58,17.760168]
[1641724812479,1.2670328,139.6,139.59,3.057]
[1641724812880,27.66479,139.63,139.6,5.73036234]
[1641724813081,27.66479,139.63,139.62,3.057]
[1641724813282,27.66479,139.63,139.62,11.376]
[1641724813681,27.66479,139.63,139.62,8.319]
[1641724814182,27.66479,139.63,139.62,11.376]
[1641724815284,27.66479,139.63,139.6,3.057]
[1641724815486,33.90179,139.63,139.6,3.057]
[1641724815685,33.90179,139.63,139.55,26.87907631]
[1641724815884,33.90179,139.63,139.55,6.87907631]
[1641724816286,33.90179,139.63,139.59,3.057]
[1641724816686,33.90179,139.63,139.54,7.16178472]
[1641724816886,33.90179,139.63,139.58,3.057]
[1641724817787,33.90179,139.63,139.54,11.16178472]
[1641724818186,33.90179,139.63,139.59,3.057]
[1641724819089,27.66479,139.63,139.59,3.057]
[1641724820294,27.66479,139.63,139.58,4.0]
[1641724821094,27.66479,139.63,139.62,3.057]
[1641724822796,27.66479,139.63,139.57,3.057]
[1641724822996,35.90779,139.63,139.56,3.057]
[1641724823197,35.90779,139.63,139.57,3.057]
[1641724823396,35.90779,139.63,139.61,3.057]
[1641724825302,35.90779,139.63,139.55,14.52212802]
[1641724825502,0.943,139.62,139.51,32.64713886]
[1641724825699,65.0547,139.62,139.54,10.21878472]
[1641724825900,27.66479,139.58,139.54,10.21878472]
[1641724826102,27.66479,139.58,139.55,4.07072739]
[1641724826503,27.66479,139.58,139.52,3.057]
[1641724826703,27.66479,139.58,139.5,7.16383695]
[1641724826904,27.66479,139.58,139.54,3.057]
[1641724827705,27.66479,139.58,139.56,3.057]
[1641724827906,0.88753691,139.57,139.55,4.07069979]
[1641724828107,0.88753691,139.57,139.56,3.057]
[1641724828709,0.88753691,139.57,139.56,7.12730101]
[1641724829106,0.88731194,139.61,139.56,7.12730101]
[1641724829306,0.8873087,139.57,139.56,7.12730101]
[1641724829909,0.88728929,139.6,139.56,7.12730101]
[1641724830109,0.88728953,139.57,139.56,4.07030101]
[1641724830310,0.88728953,139.57,139.56,7.12730101]
[1641724830809,0.88731709,139.57,139.56,7.12730101]
[1641724831611,0.88744827,139.58,139.56,7.12730101]
[1641724831811,0.88749598,139.57,139.56,4.07030101]
[1641724832211,0.88749598,139.57,139.56,7.12730101]
[1641724832813,0.8875184,139.61,139.56,7.12730101]
[1641724833014,0.88749744,139.57,139.56,7.12730101]
[1641724833614,0.88745032,139.6,139.56,7.12730101]
[1641724833814,0.887326,139.57,139.56,7.12730101]
[1641724834215,6.927326,139.57,139.56,4.07030101]
[1641724834615,6.04,139.57,139.56,4.07030101]
[1641724834817,7.87075875,139.57,139.47,8.25971662]
[1641724835117,0.943,139.56,139.47,8.25971662]
[1641724835316,7.87075875,139.57,139.51,3.057]
[1641724835517,1.29537678,139.55,139.47,12.25971662]
[1641724835916,1.29537678,139.55,139.51,3.057]
[1641724836116,29.90316134,139.56,139.47,8.25971662]
[1641724836316,68.5189,139.55,139.47,8.25971662]
[1641724836516,1.2954128,139.54,139.48,3.057]
[1641724836719,9.9774128,139.54,139.47,8.25971662]
[1641724836916,9.9774128,139.54,139.5,3.057]
[1641724837116,9.9774128,139.54,139.48,3.057]
[1641724837319,0.88850447,139.53,139.46,3.057]
[1641724837516,1.83150447,139.53,139.46,3.057]
[1641724837717,0.88850447,139.53,139.46,3.057]
[1641724837916,0.943,139.52,139.46,3.057]
[1641724838116,27.66479,139.51,139.43,34.83222119]
[1641724838319,37.37347913,139.51,139.43,34.83222119]
[1641724838517,38.31647913,139.51,139.46,3.057]
[1641724838716,0.88877545,139.5,139.46,3.057]
[1641724839719,0.88877545,139.5,139.43,34.83222119]
[1641724839919,69.78037545,139.5,139.43,27.66479]
[1641724840120,27.66479,139.48,139.43,27.66479]
[1641724840319,36.43079,139.48,139.43,27.66479]
[1641724840519,37.37379,139.48,139.43,27.66479]
[1641724840720,0.943,139.47,139.43,27.66479]
[1641724840919,2.64612062,139.47,139.4,7.16871572]
[1641724841320,1.70330326,139.46,139.42,3.057]
[1641724842119,27.66479,139.45,139.42,3.057]
[1641724842320,35.35479,139.45,139.42,3.057]
[1641724842520,2.10887756,139.44,139.42,3.057]
[1641724844124,2.10887756,139.44,139.4,7.16871572]
[1641724844423,2.10887756,139.44,139.36,7.17077193]
[1641724844623,69.35157756,139.44,139.38,3.057]
[1641724844823,69.35157756,139.44,139.42,3.057]
[1641724845022,2.10922517,139.43,139.39,7.13116578]
[1641724845223,2.10922517,139.43,139.4,3.057]
[1641724845423,2.10922517,139.43,139.4,7.13116347]
[1641724845623,2.10922517,139.43,139.4,4.07416347]
[1641724846124,2.10922517,139.43,139.41,7.13116233]
[1641724846526,2.10923374,139.44,139.41,7.13116233]
[1641724846723,2.10923374,139.44,139.42,4.07417552]
[1641724847124,3.05223374,139.44,139.42,4.07417552]
[1641724847325,3.05223374,139.44,139.37,5.73988139]
[1641724847726,3.05223374,139.44,139.4,3.057]
[1641724848126,27.66479,139.42,139.4,3.057]
[1641724848426,27.66479,139.42,139.41,4.07444728]
[1641724849528,27.66479,139.42,139.4,4.07445223]
[1641724849727,27.66479,139.42,139.41,4.07445873]
[1641724851228,27.66479,139.42,139.41,3.057]
[1641724851430,27.66479,139.42,139.41,7.13143631]
[1641724851629,27.66479,139.45,139.41,7.13143631]
[1641724852033,27.66479,139.45,139.41,4.07443631]
[1641724852233,27.66479,139.45,139.42,7.1309262]
[1641724852833,27.66479,139.45,139.43,4.07392802]
[1641724854636,27.66479,139.45,139.41,3.057]
[1641724855036,27.66479,139.45,139.42,3.057]
[1641724855237,27.66479,139.45,139.38,37.40426285]
[1641724855437,27.66479,139.45,139.42,4.07397918]
[1641724856139,0.943,139.52,139.44,3.057]
[1641724856338,27.66479,139.51,139.44,3.057]
[1641724856539,27.66479,139.51,139.47,3.057]
[1641724856738,27.66479,139.51,139.47,11.32]
[1641724857137,99.18649,139.53,139.48,4.07262634]
[1641724857338,99.18649,139.53,139.48,7.12962634]
[1641724857538,99.18649,139.53,139.48,4.07262634]
[1641724857938,99.18649,139.53,139.49,3.057]
[1641724858437,99.18649,139.53,139.47,3.057]
[1641724858837,99.18649,139.53,139.48,4.07256222]
[1641724859240,100.12949,139.53,139.48,4.07256222]
[1641724859838,100.12949,139.53,139.48,7.12956222]
[1641724860440,100.12949,139.53,139.48,3.057]
[1641724860640,99.18649,139.53,139.48,3.057]
[1641724860841,99.18649,139.53,139.49,3.057]
[1641724861842,99.18649,139.53,139.5,3.057]
[1641724862043,3.32858599,139.52,139.5,3.057]
[1641724862642,3.32858599,139.52,139.46,7.52725829]
[1641724862842,3.32858599,139.52,139.46,11.52725829]
[1641724863043,3.32858599,139.52,139.47,5.73569645]
[1641724863344,3.32858599,139.52,139.48,1.792]
[1641724863745,3.32858599,139.52,139.51,3.057]
[1641724863944,3.32858599,139.52,139.51,11.143]
[1641724864143,8.599e-05,139.52,139.51,15.21468057]
[1641724864346,3.3279876,139.54,139.52,1.791]
[1641724864946,3.3279876,139.54,139.53,7.12835335]
[1641724865147,2.3292032,139.56,139.53,7.12835335]
[1641724865749,2.3292032,139.56,139.53,3.057]
[1641724865947,2.3292032,139.56,139.51,1.791]
[1641724866548,3.2722032,139.56,139.51,3.057]
[1641724866849,3.2722032,139.56,139.48,29.45579]
[1641724867048,0.943,139.55,139.5,3.057]
[1641724867248,3.2722032,139.56,139.5,3.057]
[1641724867448,3.2722032,139.56,139.48,1.791]
[1641724867850,2.3292032,139.56,139.52,3.057]
[1641724868049,2.3292032,139.56,139.54,3.057]
[1641724868450,2.3292032,139.56,139.52,6.482]
[1641724869052,2.3292032,139.56,139.53,3.057]
[1641724869453,2.3292032,139.56,139.5,1.791]
[1641724869652,2.3292032,139.56,139.53,3.057]
[1641724869851,2.3292032,139.56,139.5,1.791]
[1641724870052,0.943,139.55,139.5,1.791]
[1641724870252,0.943,139.55,139.49,8.79183282]
[1641724870454,27.66479,139.53,139.49,8.79183282]
[1641724870653,33.60379,139.53,139.49,8.79183282]
[1641724871053,33.60379,139.53,139.49,5.73483282]
[1641724871357,33.60379,139.53,139.48,1.791]
[1641724871556,34.54679,139.53,139.48,4.848]
[1641724871753,34.54679,139.53,139.49,4.07246368]
[1641724872253,33.60379,139.53,139.49,4.07246368]
[1641724872658,27.66479,139.53,139.49,4.07246368]
[1641724872854,27.66479,139.53,139.51,3.057]
[1641724873053,27.66479,139.53,139.49,4.07246368]
[1641724873454,27.66479,139.53,139.48,5.8629108]
[1641724873653,27.66479,139.53,139.5,4.07191418]
[1641724873854,28.60779,139.53,139.5,4.07191418]
[1641724874255,28.60779,139.53,139.49,4.07241294]
[1641724874556,28.60779,139.53,139.48,3.057]
[1641724874755,0.943,139.52,139.48,3.057]
[1641724875055,0.943,139.52,139.49,4.07248799]
[1641724875255,28.60779,139.53,139.49,4.07248799]
[1641724875454,27.66479,139.53,139.49,4.07248799]
[1641724875854,27.66479,139.53,139.49,7.12948799]
[1641724876055,27.66479,139.53,139.48,5.86324245]
[1641724876255,27.66479,139.53,139.52,3.057]
[1641724876455,27.66479,139.53,139.5,7.12902023]
[1641724876856,27.66479,139.53,139.5,3.057]
[1641724877456,27.66479,139.53,139.51,4.07185842]
[1641724878058,0.943,139.52,139.51,4.07185842]
[1641724878257,27.66479,139.53,139.51,4.07185842]
[1641724878456,27.66479,139.53,139.49,4.07174954]
[1641724878657,27.66479,139.53,139.48,3.057]
[1641724879056,27.66479,139.53,139.5,7.12879773]
[1641724879257,27.66479,139.53,139.5,4.07179773]
[1641724879557,27.66479,139.53,139.51,4.07162757]
[1641724880559,27.66479,139.53,139.5,5.86230053]
[1641724880761,27.66479,139.53,139.52,4.07147236]
[1641724880960,28.60779,139.53,139.52,4.07147236]
[1641724881661,28.60779,139.53,139.52,4.07151326]
[1641724882060,28.60779,139.53,139.47,11.133]
[1641724882261,0.943,139.52,139.47,1.791]
[1641724882460,0.943,139.52,139.48,4.071706]
[1641724883061,0.943,139.51,139.48,4.071706]
[1641724883863,0.943,139.51,139.46,4.07175589]
[1641724884065,0.943,139.51,139.49,4.07166979]
[1641724884665,0.943,139.51,139.47,4.07185839]
[1641724885066,0.943,139.51,139.5,4.07190861]
[1641724885267,0.943,139.51,139.5,12.36790861]
[1641724885671,0.943,139.51,139.5,12.36781154]
[1641724888968,0.943,139.51,139.5,4.07181154]
[1641724889169,0.943,139.51,139.45,3.057]
[1641724889371,0.943,139.49,139.45,3.057]
[1641724889570,0.943,139.5,139.46,4.07226723]
[1641724890575,27.66479,139.49,139.46,4.07226723]
[1641724891474,69.2055,139.52,139.47,3.057]
[1641724891674,0.943,139.51,139.47,3.057]
[1641724891875,69.2055,139.52,139.48,4.07191877]
[1641724892174,69.2055,139.52,139.48,13.26391877]
[1641724892974,69.2055,139.52,139.49,4.07180016]
[1641724893475,69.2055,139.52,139.49,7.12880016]
[1641724893675,0.943,139.52,139.49,7.12880016]
[1641724893876,0.943,139.52,139.49,4.07180016]
[1641724894075,27.66479,139.56,139.51,3.057]
[1641724894276,70.4109,139.59,139.51,9.461]
[1641724894578,69.4679,139.59,139.56,3.057]
[1641724894775,27.66479,139.6,139.58,3.057]
[1641724894977,27.66479,139.6,139.57,1.79]
[1641724895180,27.66479,139.6,139.57,5.86024332]
[1641724895579,27.66479,139.6,139.57,8.91724332]
[1641724895978,2.32874061,139.59,139.57,3.057]
[1641724896779,2.32874061,139.59,139.56,1.791]
[1641724897079,2.32874061,139.59,139.53,1.791]
[1641724897680,3.27174061,139.59,139.54,7.12768612]
[1641724898082,3.27174061,139.59,139.55,4.07065875]
[1641724898284,2.32923917,139.58,139.55,4.07065875]
[1641724898982,3.27223917,139.58,139.55,4.07065875]
[1641724899183,0.943,139.56,139.55,5.875e-05]
[1641724899383,10.11,139.56,139.46,1.791]
[1641724899987,0.943,139.54,139.49,3.057]
[1641724900588,3.55112061,139.53,139.5,4.07157428]
[1641724904292,0.943,139.55,139.5,4.07157428]
[1641724904493,2.32919453,139.52,139.5,4.07157428]
[1641724905093,2.32918926,139.54,139.5,4.07157428]
[1641724905494,28.60779,139.55,139.5,4.07157428]
[1641724905896,2.32926375,139.54,139.5,4.07157428]
[1641724907994,2.32926375,139.54,139.53,3.057]
[1641724908193,2.32926375,139.54,139.53,10.364]
[1641724908394,2.32926375,139.54,139.53,14.43501115]
[1641724908994,3.54956097,139.57,139.53,14.43501115]
[1641724909294,3.54958294,139.54,139.53,14.43501115]
[1641724909900,3.54957348,139.56,139.53,14.43501115]
[1641724910101,3.54949835,139.54,139.53,11.37801115]
[1641724910303,3.54949835,139.54,139.53,14.43501115]
[1641724910702,3.54949054,139.55,139.53,11.37801115]
[1641724910900,3.54962641,139.54,139.53,11.37801115]
[1641724911101,3.54962641,139.54,139.53,14.43501115]
[1641724911903,3.54963158,139.57,139.53,14.43501115]
[1641724912303,3.54966518,139.54,139.53,14.43501115]
[1641724912904,3.54968669,139.56,139.53,14.43501115]
[1641724913104,3.54968815,139.54,139.53,14.43501115]
[1641724913304,3.54968815,139.54,139.53,11.37801115]
[1641724913505,10.69668815,139.54,139.53,4.07101115]
[1641724913706,7.147,139.54,139.47,1.791]
[1641724913906,10.69721326,139.54,139.46,1.792]
[1641724914304,4.0718308,139.53,139.49,3.057]
[1641724915106,4.0718308,139.53,139.46,1.792]
[1641724915306,27.66479,139.51,139.46,1.792]
[1641724915905,4.07182219,139.5,139.49,3.057]
[1641724916106,4.07182219,139.5,139.48,3.057]
[1641724921017,4.07182219,139.5,139.47,3.057]
[1641724922018,4.07182219,139.5,139.45,6.88405581]
[1641724923819,0.943,139.49,139.44,1.792]
[1641724924019,0.943,139.49,139.42,1.792]
[1641724924218,0.943,139.49,139.43,3.057]
[1641724924420,4.07311553,139.48,139.43,3.057]
[1641724924820,0.943,139.47,139.44,3.37404061]
[1641724925420,4.07324948,139.46,139.44,3.37404061]
[1641724925621,27.66479,139.45,139.44,3.37404061]
[1641724926022,31.73806745,139.45,139.44,3.37404061]
[1641724927023,31.73806745,139.45,139.41,3.37419159]
[1641724927422,31.73806745,139.45,139.44,3.37481519]
[1641724928023,31.73806745,139.45,139.42,6.43189175]
[1641724928224,31.73806745,139.45,139.44,3.37486218]
[1641724928825,31.73806745,139.45,139.43,10.71687034]
[1641724929023,31.73806745,139.45,139.44,3.37485946]
[1641724929224,4.07327745,139.45,139.44,6.43185946]
[1641724929926,4.07277837,139.5,139.44,8.22385946]
[1641724930127,4.07277837,139.5,139.44,9.16685946]
[1641724930326,4.07277837,139.5,139.48,3.057]
[1641724930525,4.07277837,139.5,139.49,3.057]
[1641724930725,3.54905411,139.51,139.49,7.12920289]
[1641724930927,3.54905411,139.51,139.49,4.07220289]
[1641724931226,3.54905411,139.51,139.48,7.343]
[1641724931626,3.54905411,139.51,139.49,4.0721989]
[1641724932126,3.54905411,139.51,139.5,3.057]
[1641724932325,3.54905411,139.51,139.49,4.0721989]
[1641724932527,3.54905411,139.51,139.5,3.37321783]
[1641724933526,3.54905411,139.51,139.49,3.37329806]
[1641724933726,3.54905411,139.51,139.5,3.37329701]
[1641724933928,3.54905411,139.51,139.5,6.43029701]
[1641724934327,3.54905411,139.51,139.5,8.22229701]
[1641724934528,3.54905411,139.51,139.5,6.43029701]
[1641724934930,3.54905411,139.51,139.5,8.22229701]
[1641724935135,3.54905411,139.51,139.5,12.22229701]
[1641724935636,0.943,139.61,139.5,17.956821]
[1641724935935,0.943,139.61,139.58,3.057]
[1641724936134,27.66479,139.62,139.6,3.057]
[1641724936334,27.66479,139.62,139.58,6.139]
[1641724936539,27.66479,139.62,139.61,3.057]
[1641724936737,27.66479,139.64,139.61,9.969]
[1641724937135,23.70479,139.64,139.63,3.057]
[1641724938337,0.943,139.7,139.63,3.057]
[1641724938537,0.943,139.7,139.63,8.91427482]